[Event "Titled Tuesday Blitz July 18 Early 2023"]
[White "Shukhman, Anna"]
[Black "Sathish, Pranav"]
[WhiteFideId "54180058"]
[BlackFideId "30967538"]
[WhiteElo "2606"]
[BlackElo "2469"]
[Result "1/2-1/2"]
[Round "6"]
[TimeControl "180+2"]
[Date "2023.07.18"]
[WhiteClock "0:00:21"]
[BlackClock "0:00:21"]
[Board "80"]

1. e4 {[%clk 0:03:00]}  c5 {[%clk 0:02:59]} 2. Nf3 {[%clk 0:03:00]}  Nc6 {[%clk 0:02:59]} 3. Bb5 {[%clk 0:02:59]}  g6 {[%clk 0:02:58]} 4. O-O {[%clk 0:02:58]}  Bg7 {[%clk 0:02:57]} 5. c3 {[%clk 0:02:59]}  Nf6 {[%clk 0:02:56]} 6. Re1 {[%clk 0:02:58]}  O-O {[%clk 0:02:54]} 7. h3 {[%clk 0:02:58]}  a6 {[%clk 0:02:46]} 8. Bxc6 {[%clk 0:02:53]}  dxc6 {[%clk 0:02:43]} 9. d4 {[%clk 0:02:53]}  cxd4 {[%clk 0:02:43]} 10. cxd4 {[%clk 0:02:54]}  c5 {[%clk 0:02:39]} 11. d5 {[%clk 0:02:51]}  e6 {[%clk 0:02:31]} 12. Nc3 {[%clk 0:02:20]}  exd5 {[%clk 0:02:30]} 13. e5 {[%clk 0:02:19]}  Ne8 {[%clk 0:02:13]} 14. Bg5 {[%clk 0:02:16]}  f6 {[%clk 0:02:08]} 15. exf6 {[%clk 0:02:09]}  Nxf6 {[%clk 0:02:06]} 16. Bxf6 {[%clk 0:02:07]}  Bxf6 {[%clk 0:02:05]} 17. Nxd5 {[%clk 0:01:48]}  Bxb2 {[%clk 0:02:04]} 18. Qb3 {[%clk 0:01:47]}  Bxa1 {[%clk 0:01:50]} 19. Nb6+ {[%clk 0:01:44]}  Rf7 {[%clk 0:01:41]} 20. Rxa1 {[%clk 0:01:38]}  c4 {[%clk 0:01:23]} 21. Qe3 {[%clk 0:01:20]}  Rb8 {[%clk 0:01:04]} 22. Ng5 {[%clk 0:00:52]}  Qf6 {[%clk 0:00:48]} 23. Rd1 {[%clk 0:00:44]}  Bf5 {[%clk 0:00:36]} 24. Nxf7 {[%clk 0:00:42]}  Qxf7 {[%clk 0:00:36]} 25. Qf4 {[%clk 0:00:37]}  Rf8 {[%clk 0:00:32]} 26. Nxc4 {[%clk 0:00:35]}  Be6 {[%clk 0:00:31]} 27. Qxf7+ {[%clk 0:00:32]}  Rxf7 {[%clk 0:00:31]} 28. Rd8+ {[%clk 0:00:24]}  Kg7 {[%clk 0:00:29]} 29. Nd6 {[%clk 0:00:24]}  Re7 {[%clk 0:00:27]} 30. a3 {[%clk 0:00:23]}  Kf6 {[%clk 0:00:25]} 31. f4 {[%clk 0:00:22]}  Rd7 {[%clk 0:00:22]} 32. Rxd7 {[%clk 0:00:20]}  Bxd7 {[%clk 0:00:22]} 33. Nxb7 {[%clk 0:00:21]}  Ke7 {[%clk 0:00:20]} 34. Nc5 {[%clk 0:00:21]}  Bb5 {[%clk 0:00:20]} 35. a4 {[%clk 0:00:16]}  Bc4 {[%clk 0:00:20]} 36. Kf2 {[%clk 0:00:16]}  Kd6 {[%clk 0:00:19]} 37. Ne4+ {[%clk 0:00:16]}  Kc6 {[%clk 0:00:18]} 38. Ke3 {[%clk 0:00:16]}  Bb3 {[%clk 0:00:18]} 39. a5 {[%clk 0:00:16]}  Kb5 {[%clk 0:00:18]} 40. Nf6 {[%clk 0:00:16]}  h5 {[%clk 0:00:18]} 41. g4 {[%clk 0:00:15]}  hxg4 {[%clk 0:00:18]} 42. hxg4 {[%clk 0:00:15]}  Kxa5 {[%clk 0:00:18]} 43. Kd2 {[%clk 0:00:15]}  Kb6 {[%clk 0:00:18]} 44. f5 {[%clk 0:00:15]}  gxf5 {[%clk 0:00:18]} 45. gxf5 {[%clk 0:00:15]}  Bf7 {[%clk 0:00:18]} 46. Nd7+ {[%clk 0:00:15]}  Kc7 {[%clk 0:00:18]} 47. Ne5 {[%clk 0:00:16]}  Be8 {[%clk 0:00:18]} 48. f6 {[%clk 0:00:15]}  Kd6 {[%clk 0:00:18]} 49. f7 {[%clk 0:00:15]}  Bxf7 {[%clk 0:00:18]} 50. Nxf7+ {[%clk 0:00:16]}  Ke7 {[%clk 0:00:19]} 51. Ng5 {[%clk 0:00:17]}  a5 {[%clk 0:00:20]} 52. Nf3 {[%clk 0:00:18]}  a4 {[%clk 0:00:20]} 53. Nd4 {[%clk 0:00:19]}  a3 {[%clk 0:00:21]} 54. Nc2 {[%clk 0:00:19]}  a2 {[%clk 0:00:21]} 55. Kc3 {[%clk 0:00:20]}  a1=Q+ {[%clk 0:00:21]} 56. Nxa1 {[%clk 0:00:21]} 1/2-1/2


[Site "https://www.chess.com"]

[Event "Titled Tuesday Blitz July 18 Early 2023"]
[White "Golubev, Mikhail"]
[Black "Arnold, Ken"]
[WhiteFideId "14100983"]
[BlackFideId "2056836"]
[WhiteElo "2605"]
[BlackElo "2458"]
[Result "1-0"]
[Round "6"]
[TimeControl "180+2"]
[Date "2023.07.18"]
[WhiteClock "0:00:03"]
[BlackClock "0:00:17"]
[Board "81"]

1. e4 {[%clk 0:03:00]}  c6 {[%clk 0:02:59]} 2. Nc3 {[%clk 0:02:56]}  d5 {[%clk 0:02:59]} 3. Nf3 {[%clk 0:02:57]}  dxe4 {[%clk 0:02:58]} 4. Nxe4 {[%clk 0:02:56]}  Nf6 {[%clk 0:02:59]} 5. Qe2 {[%clk 0:02:56]}  Nxe4 {[%clk 0:02:58]} 6. Qxe4 {[%clk 0:02:57]}  Nd7 {[%clk 0:02:57]} 7. Bc4 {[%clk 0:02:54]}  e6 {[%clk 0:02:56]} 8. d4 {[%clk 0:02:46]}  Nf6 {[%clk 0:02:56]} 9. Qe2 {[%clk 0:02:44]}  Be7 {[%clk 0:02:55]} 10. O-O {[%clk 0:02:37]}  O-O {[%clk 0:02:54]} 11. Bg5 {[%clk 0:02:33]}  h6 {[%clk 0:02:50]} 12. Bh4 {[%clk 0:02:32]}  Nd5 {[%clk 0:02:50]} 13. Bxe7 {[%clk 0:02:30]}  Qxe7 {[%clk 0:02:48]} 14. Bb3 {[%clk 0:02:27]}  b6 {[%clk 0:02:46]} 15. Ne5 {[%clk 0:02:16]}  Bb7 {[%clk 0:02:45]} 16. c4 {[%clk 0:01:51]}  Nf6 {[%clk 0:02:36]} 17. Qe3 {[%clk 0:01:45]}  Rfd8 {[%clk 0:02:32]} 18. c5 {[%clk 0:01:26]}  bxc5 {[%clk 0:02:16]} 19. dxc5 {[%clk 0:01:21]}  Nd5 {[%clk 0:02:09]} 20. Qd4 {[%clk 0:01:03]}  Qf6 {[%clk 0:01:56]} 21. Rad1 {[%clk 0:00:57]}  a5 {[%clk 0:01:14]} 22. f4 {[%clk 0:00:53]}  Nb4 {[%clk 0:00:50]} 23. Qe3 {[%clk 0:00:40]}  Ba6 {[%clk 0:00:39]} 24. Bc4 {[%clk 0:00:19]}  Nd5 {[%clk 0:00:35]} 25. Qd4 {[%clk 0:00:11]}  Bxc4 {[%clk 0:00:35]} 26. Nxc4 {[%clk 0:00:06]}  Nxf4 {[%clk 0:00:26]} 27. Qxf6 {[%clk 0:00:05]}  gxf6 {[%clk 0:00:20]} 28. Rxd8+ {[%clk 0:00:03]}  Rxd8 {[%clk 0:00:21]} 29. Rxf4 {[%clk 0:00:04]}  Rd1+ {[%clk 0:00:22]} 30. Rf1 {[%clk 0:00:03]}  Rd4 {[%clk 0:00:23]} 31. Rc1 {[%clk 0:00:02]}  e5 {[%clk 0:00:22]} 32. a3 {[%clk 0:00:02]}  a4 {[%clk 0:00:22]} 33. Na5 {[%clk 0:00:02]}  Rd2 {[%clk 0:00:22]} 34. Nxc6 {[%clk 0:00:02]}  Rxb2 {[%clk 0:00:22]} 35. Ne7+ {[%clk 0:00:02]}  Kf8 {[%clk 0:00:22]} 36. c6 {[%clk 0:00:02]}  Kxe7 {[%clk 0:00:17]} 37. c7 {[%clk 0:00:03]} 1-0


[Site "https://www.chess.com"]

[Event "Titled Tuesday Blitz July 18 Early 2023"]
[White "Goldin, Roman"]
[Black "Altman, Joshua"]
[WhiteFideId "2803860"]
[BlackFideId "426210"]
[WhiteElo "2437"]
[BlackElo "2603"]
[Result "1-0"]
[Round "6"]
[TimeControl "180+2"]
[Date "2023.07.18"]
[WhiteClock "0:00:02"]
[BlackClock "0:00:00"]
[Board "85"]

1. e4 {[%clk 0:02:59]}  Nc6 {[%clk 0:03:00]} 2. Nf3 {[%clk 0:02:54]}  d6 {[%clk 0:02:57]} 3. d4 {[%clk 0:02:51]}  Nf6 {[%clk 0:02:56]} 4. Nc3 {[%clk 0:02:50]}  g6 {[%clk 0:02:52]} 5. h3 {[%clk 0:02:45]}  Bg7 {[%clk 0:02:52]} 6. g3 {[%clk 0:02:45]}  O-O {[%clk 0:02:52]} 7. Bg2 {[%clk 0:02:44]}  e5 {[%clk 0:02:51]} 8. Be3 {[%clk 0:02:45]}  Re8 {[%clk 0:02:46]} 9. O-O {[%clk 0:02:43]}  exd4 {[%clk 0:02:21]} 10. Nxd4 {[%clk 0:02:43]}  Nxd4 {[%clk 0:02:13]} 11. Bxd4 {[%clk 0:02:42]}  Be6 {[%clk 0:02:13]} 12. Re1 {[%clk 0:02:38]}  Qd7 {[%clk 0:02:12]} 13. Kh2 {[%clk 0:02:38]}  Rad8 {[%clk 0:02:04]} 14. Qd2 {[%clk 0:02:37]}  a6 {[%clk 0:01:54]} 15. Rad1 {[%clk 0:02:36]}  Qc8 {[%clk 0:01:41]} 16. a4 {[%clk 0:01:54]}  c5 {[%clk 0:01:41]} 17. Be3 {[%clk 0:01:43]}  Bd7 {[%clk 0:00:52]} 18. Bf4 {[%clk 0:01:19]}  Bc6 {[%clk 0:00:39]} 19. Bxd6 {[%clk 0:01:16]}  b5 {[%clk 0:00:33]} 20. axb5 {[%clk 0:01:16]}  axb5 {[%clk 0:00:34]} 21. e5 {[%clk 0:01:14]}  Bxg2 {[%clk 0:00:31]} 22. Kxg2 {[%clk 0:01:11]}  Qc6+ {[%clk 0:00:22]} 23. Kg1 {[%clk 0:01:05]}  b4 {[%clk 0:00:18]} 24. exf6 {[%clk 0:00:47]}  bxc3 {[%clk 0:00:18]} 25. Rxe8+ {[%clk 0:00:40]}  Qxe8 {[%clk 0:00:09]} 26. Qxc3 {[%clk 0:00:40]}  Bf8 {[%clk 0:00:09]} 27. Qxc5 {[%clk 0:00:17]}  Qe6 {[%clk 0:00:06]} 28. b4 {[%clk 0:00:04]}  Bxd6 {[%clk 0:00:05]} 29. Qd4 {[%clk 0:00:03]}  Rd7 {[%clk 0:00:02]} 30. c4 {[%clk 0:00:01]}  Rd8 {[%clk 0:00:01]} 31. c5 {[%clk 0:00:01]}  Bc7 {[%clk 0:00:01]} 32. Qxd8+ {[%clk 0:00:02]}  Bxd8 {[%clk 0:00:00]} 33. Rxd8+ {[%clk 0:00:02]} 1-0


[Site "https://www.chess.com"]

[Event "Titled Tuesday Blitz July 18 Early 2023"]
[White "Gabdushev, Ruslan"]
[Black "Arat, Ufuk Sezen"]
[WhiteFideId "4137833"]
[BlackFideId "6309089"]
[WhiteElo "2430"]
[BlackElo "2597"]
[Result "0-1"]
[Round "6"]
[TimeControl "180+2"]
[Date "2023.07.18"]
[WhiteClock "0:01:31"]
[BlackClock "0:01:41"]
[Board "86"]

1. g3 {[%clk 0:02:59]}  d5 {[%clk 0:03:00]} 2. Bg2 {[%clk 0:02:59]}  c6 {[%clk 0:03:00]} 3. d3 {[%clk 0:02:58]}  Nf6 {[%clk 0:03:01]} 4. Nf3 {[%clk 0:02:56]}  Bg4 {[%clk 0:03:02]} 5. O-O {[%clk 0:02:56]}  Nbd7 {[%clk 0:03:02]} 6. h3 {[%clk 0:02:55]}  Bxf3 {[%clk 0:03:02]} 7. Bxf3 {[%clk 0:02:55]}  e5 {[%clk 0:03:03]} 8. Bg2 {[%clk 0:02:54]}  Be7 {[%clk 0:03:03]} 9. c4 {[%clk 0:02:51]}  d4 {[%clk 0:02:57]} 10. e3 {[%clk 0:02:47]}  Nc5 {[%clk 0:02:50]} 11. b4 {[%clk 0:02:38]}  Ne6 {[%clk 0:02:49]} 12. Qb3 {[%clk 0:02:32]}  a5 {[%clk 0:02:44]} 13. bxa5 {[%clk 0:02:32]}  Nc5 {[%clk 0:02:43]} 14. Qc2 {[%clk 0:02:29]}  O-O {[%clk 0:02:36]} 15. Rd1 {[%clk 0:02:26]}  Qxa5 {[%clk 0:02:28]} 16. exd4 {[%clk 0:02:24]}  exd4 {[%clk 0:02:25]} 17. Nd2 {[%clk 0:02:23]}  Qc3 {[%clk 0:02:05]} 18. Qxc3 {[%clk 0:02:22]}  dxc3 {[%clk 0:02:05]} 19. Nf1 {[%clk 0:02:16]}  Nb3 {[%clk 0:01:54]} 20. Be3 {[%clk 0:02:05]}  Nxa1 {[%clk 0:01:47]} 21. Rxa1 {[%clk 0:02:02]}  Rfd8 {[%clk 0:01:40]} 22. d4 {[%clk 0:01:31]}  Ba3 {[%clk 0:01:41]} 0-1


[Site "https://www.chess.com"]

[Event "Titled Tuesday Blitz July 18 Early 2023"]
[White "Al-Tarboush, Ward"]
[Black "Mazurkiewicz, Michal"]
[WhiteFideId "7601450"]
[BlackFideId "1124943"]
[WhiteElo "2595"]
[BlackElo "2425"]
[Result "1-0"]
[Round "6"]
[TimeControl "180+2"]
[Date "2023.07.18"]
[WhiteClock "0:00:06"]
[BlackClock "0:00:04"]
[Board "88"]

1. e4 {[%clk 0:03:00]}  d6 {[%clk 0:02:59]} 2. d4 {[%clk 0:03:00]}  Nf6 {[%clk 0:02:59]} 3. Nc3 {[%clk 0:03:00]}  c6 {[%clk 0:02:59]} 4. Nf3 {[%clk 0:02:37]}  Bg4 {[%clk 0:02:58]} 5. Be2 {[%clk 0:02:14]}  e6 {[%clk 0:02:58]} 6. O-O {[%clk 0:02:13]}  d5 {[%clk 0:02:58]} 7. exd5 {[%clk 0:01:55]}  cxd5 {[%clk 0:02:58]} 8. h3 {[%clk 0:01:38]}  Bh5 {[%clk 0:02:56]} 9. g4 {[%clk 0:01:38]}  Bg6 {[%clk 0:02:56]} 10. Ne5 {[%clk 0:01:38]}  Nc6 {[%clk 0:02:55]} 11. f4 {[%clk 0:01:33]}  Be4 {[%clk 0:02:33]} 12. g5 {[%clk 0:01:28]}  Nd7 {[%clk 0:02:23]} 13. Nxc6 {[%clk 0:01:27]}  bxc6 {[%clk 0:02:22]} 14. Nxe4 {[%clk 0:01:27]}  dxe4 {[%clk 0:02:23]} 15. c3 {[%clk 0:01:25]}  c5 {[%clk 0:02:23]} 16. Be3 {[%clk 0:01:19]}  cxd4 {[%clk 0:02:20]} 17. Bxd4 {[%clk 0:01:16]}  Bc5 {[%clk 0:01:57]} 18. Bb5 {[%clk 0:01:15]}  Bxd4+ {[%clk 0:01:46]} 19. Qxd4 {[%clk 0:01:16]}  Qc7 {[%clk 0:01:43]} 20. Rad1 {[%clk 0:01:07]}  O-O-O {[%clk 0:01:43]} 21. Bxd7+ {[%clk 0:01:01]}  Rxd7 {[%clk 0:01:41]} 22. Qxe4 {[%clk 0:00:58]}  Qb6+ {[%clk 0:01:27]} 23. Kh1 {[%clk 0:00:57]}  Rhd8 {[%clk 0:01:23]} 24. Rxd7 {[%clk 0:00:16]}  Rxd7 {[%clk 0:01:24]} 25. Qe2 {[%clk 0:00:07]}  Qc6+ {[%clk 0:01:01]} 26. Qg2 {[%clk 0:00:07]}  Kc7 {[%clk 0:00:50]} 27. Qxc6+ {[%clk 0:00:06]}  Kxc6 {[%clk 0:00:51]} 28. Kg2 {[%clk 0:00:06]}  Kc5 {[%clk 0:00:50]} 29. Kf3 {[%clk 0:00:05]}  Kc4 {[%clk 0:00:44]} 30. Ke2 {[%clk 0:00:02]}  Rd3 {[%clk 0:00:41]} 31. Rf3 {[%clk 0:00:02]}  Rd5 {[%clk 0:00:32]} 32. b3+ {[%clk 0:00:02]}  Kc5 {[%clk 0:00:33]} 33. h4 {[%clk 0:00:03]}  e5 {[%clk 0:00:31]} 34. Rd3 {[%clk 0:00:02]}  exf4 {[%clk 0:00:29]} 35. Rxd5+ {[%clk 0:00:02]}  Kxd5 {[%clk 0:00:29]} 36. Kf3 {[%clk 0:00:02]}  Ke5 {[%clk 0:00:29]} 37. c4 {[%clk 0:00:03]}  a5 {[%clk 0:00:08]} 38. a3 {[%clk 0:00:03]}  Kd4 {[%clk 0:00:08]} 39. Kxf4 {[%clk 0:00:02]}  Kc3 {[%clk 0:00:09]} 40. c5 {[%clk 0:00:03]}  Kxb3 {[%clk 0:00:09]} 41. c6 {[%clk 0:00:04]}  Kxa3 {[%clk 0:00:10]} 42. c7 {[%clk 0:00:05]}  a4 {[%clk 0:00:10]} 43. c8=Q {[%clk 0:00:06]}  Kb2 {[%clk 0:00:08]} 44. Qb7+ {[%clk 0:00:06]}  Ka2 {[%clk 0:00:07]} 45. Qxf7+ {[%clk 0:00:06]}  Kb2 {[%clk 0:00:04]} 46. Qxg7+ {[%clk 0:00:06]} 1-0


[Site "https://www.chess.com"]

[Event "Titled Tuesday Blitz July 18 Early 2023"]
[White "Colas, Joshua"]
[Black "Melikhov, Evgeny V."]
[WhiteFideId "2044447"]
[BlackFideId "4122046"]
[WhiteElo "2591"]
[BlackElo "2420"]
[Result "1-0"]
[Round "6"]
[TimeControl "180+2"]
[Date "2023.07.18"]
[WhiteClock "0:01:09"]
[BlackClock "0:00:02"]
[Board "89"]

1. d4 {[%clk 0:02:57]}  Nf6 {[%clk 0:02:59]} 2. Nc3 {[%clk 0:02:54]}  d5 {[%clk 0:02:58]} 3. Bf4 {[%clk 0:02:52]}  c5 {[%clk 0:02:57]} 4. e3 {[%clk 0:02:47]}  cxd4 {[%clk 0:02:57]} 5. exd4 {[%clk 0:02:44]}  a6 {[%clk 0:02:57]} 6. Nf3 {[%clk 0:02:44]}  Bg4 {[%clk 0:02:56]} 7. Be2 {[%clk 0:02:43]}  Nc6 {[%clk 0:02:52]} 8. Ne5 {[%clk 0:02:39]}  Bxe2 {[%clk 0:02:51]} 9. Nxe2 {[%clk 0:02:39]}  Rc8 {[%clk 0:02:36]} 10. Nxc6 {[%clk 0:02:37]}  Rxc6 {[%clk 0:02:34]} 11. c3 {[%clk 0:02:37]}  e6 {[%clk 0:02:33]} 12. O-O {[%clk 0:02:36]}  h6 {[%clk 0:02:30]} 13. a4 {[%clk 0:02:32]}  Bd6 {[%clk 0:02:29]} 14. a5 {[%clk 0:02:18]}  O-O {[%clk 0:02:25]} 15. f3 {[%clk 0:02:13]}  Bxf4 {[%clk 0:02:18]} 16. Nxf4 {[%clk 0:02:14]}  b5 {[%clk 0:01:51]} 17. Nd3 {[%clk 0:02:07]}  Qc7 {[%clk 0:01:43]} 18. Nc5 {[%clk 0:02:01]}  Nd7 {[%clk 0:01:39]} 19. b4 {[%clk 0:01:52]}  Nxc5 {[%clk 0:01:39]} 20. dxc5 {[%clk 0:01:52]}  Rd8 {[%clk 0:01:35]} 21. f4 {[%clk 0:01:50]}  e5 {[%clk 0:01:19]} 22. fxe5 {[%clk 0:01:47]}  Qxe5 {[%clk 0:01:19]} 23. Qd4 {[%clk 0:01:48]}  Qg5 {[%clk 0:01:06]} 24. Rae1 {[%clk 0:01:41]}  Rg6 {[%clk 0:00:48]} 25. g3 {[%clk 0:01:27]}  Rd7 {[%clk 0:00:45]} 26. Re5 {[%clk 0:01:26]}  Qg4 {[%clk 0:00:23]} 27. Rxd5 {[%clk 0:01:21]}  Rxd5 {[%clk 0:00:17]} 28. Qxd5 {[%clk 0:01:22]}  Qe2 {[%clk 0:00:14]} 29. Qxf7+ {[%clk 0:01:21]}  Kh7 {[%clk 0:00:14]} 30. Qf3 {[%clk 0:01:21]}  Qe5 {[%clk 0:00:13]} 31. Qd3 {[%clk 0:01:20]}  Qe6 {[%clk 0:00:11]} 32. Rf4 {[%clk 0:01:17]}  Kh8 {[%clk 0:00:10]} 33. Rf8+ {[%clk 0:01:14]}  Kh7 {[%clk 0:00:02]} 34. Rd8 {[%clk 0:01:09]} 1-0


[Site "https://www.chess.com"]

[Event "Titled Tuesday Blitz July 18 Early 2023"]
[White "Garcia Blanco, Omar"]
[Black "Manukian, Artak"]
[WhiteFideId "2287153"]
[BlackFideId "13301373"]
[WhiteElo "2588"]
[BlackElo "2418"]
[Result "1-0"]
[Round "6"]
[TimeControl "180+2"]
[Date "2023.07.18"]
[WhiteClock "0:00:06"]
[BlackClock "0:00:00"]
[Board "90"]

1. e4 {[%clk 0:03:00]}  c6 {[%clk 0:02:09]} 2. d4 {[%clk 0:02:59]}  d5 {[%clk 0:02:09]} 3. exd5 {[%clk 0:03:00]}  cxd5 {[%clk 0:02:09]} 4. Bd3 {[%clk 0:03:01]}  Nc6 {[%clk 0:02:09]} 5. c3 {[%clk 0:03:01]}  e5 {[%clk 0:02:09]} 6. dxe5 {[%clk 0:03:02]}  Nxe5 {[%clk 0:02:10]} 7. Nf3 {[%clk 0:03:02]}  Nxd3+ {[%clk 0:02:09]} 8. Qxd3 {[%clk 0:03:03]}  Nf6 {[%clk 0:02:10]} 9. O-O {[%clk 0:03:04]}  Be7 {[%clk 0:02:10]} 10. Be3 {[%clk 0:03:00]}  O-O {[%clk 0:02:11]} 11. Nbd2 {[%clk 0:03:01]}  Bg4 {[%clk 0:02:06]} 12. Rfe1 {[%clk 0:03:00]}  Re8 {[%clk 0:01:58]} 13. Bd4 {[%clk 0:02:51]}  Bh5 {[%clk 0:01:42]} 14. Qb5 {[%clk 0:02:43]}  Qd7 {[%clk 0:01:35]} 15. Qxd7 {[%clk 0:02:33]}  Nxd7 {[%clk 0:01:36]} 16. Ne5 {[%clk 0:02:34]}  Nf6 {[%clk 0:01:29]} 17. Nd3 {[%clk 0:02:28]}  Bd6 {[%clk 0:01:26]} 18. f3 {[%clk 0:02:23]}  Bg6 {[%clk 0:01:21]} 19. Ne5 {[%clk 0:02:22]}  Bxe5 {[%clk 0:01:15]} 20. Bxe5 {[%clk 0:02:22]}  Nd7 {[%clk 0:01:13]} 21. Bd4 {[%clk 0:02:17]}  b6 {[%clk 0:01:08]} 22. Nb3 {[%clk 0:01:49]}  f6 {[%clk 0:01:04]} 23. Kf2 {[%clk 0:01:41]}  Rxe1 {[%clk 0:01:03]} 24. Rxe1 {[%clk 0:01:39]}  Re8 {[%clk 0:01:04]} 25. Rd1 {[%clk 0:01:33]}  Bc2 {[%clk 0:00:57]} 26. Rd2 {[%clk 0:01:33]}  Bxb3 {[%clk 0:00:56]} 27. axb3 {[%clk 0:01:34]}  Rd8 {[%clk 0:00:54]} 28. b4 {[%clk 0:01:32]}  Kf7 {[%clk 0:00:54]} 29. b3 {[%clk 0:01:31]}  Nf8 {[%clk 0:00:51]} 30. g4 {[%clk 0:01:27]}  Ne6 {[%clk 0:00:48]} 31. Be3 {[%clk 0:01:26]}  g5 {[%clk 0:00:45]} 32. Ke2 {[%clk 0:01:25]}  Ke7 {[%clk 0:00:41]} 33. Kd3 {[%clk 0:01:23]}  Kd6 {[%clk 0:00:38]} 34. Ra2 {[%clk 0:00:58]}  Rd7 {[%clk 0:00:36]} 35. Bd4 {[%clk 0:00:54]}  Nf4+ {[%clk 0:00:29]} 36. Ke3 {[%clk 0:00:53]}  Re7+ {[%clk 0:00:28]} 37. Kf2 {[%clk 0:00:51]}  Rf7 {[%clk 0:00:21]} 38. Kg3 {[%clk 0:00:47]}  Ke6 {[%clk 0:00:18]} 39. h4 {[%clk 0:00:45]}  h6 {[%clk 0:00:18]} 40. Be3 {[%clk 0:00:44]}  Ng6 {[%clk 0:00:17]} 41. h5 {[%clk 0:00:42]}  Ne5 {[%clk 0:00:17]} 42. Bd4 {[%clk 0:00:42]}  Nc6 {[%clk 0:00:17]} 43. Bf2 {[%clk 0:00:35]}  Re7 {[%clk 0:00:15]} 44. b5 {[%clk 0:00:35]}  Nd8 {[%clk 0:00:15]} 45. Rd2 {[%clk 0:00:26]}  Nf7 {[%clk 0:00:14]} 46. f4 {[%clk 0:00:24]}  Nd6 {[%clk 0:00:13]} 47. Kf3 {[%clk 0:00:21]}  Nxb5 {[%clk 0:00:12]} 48. c4 {[%clk 0:00:19]}  dxc4 {[%clk 0:00:11]} 49. bxc4 {[%clk 0:00:19]}  Nd6 {[%clk 0:00:12]} 50. f5+ {[%clk 0:00:20]}  Kd7 {[%clk 0:00:09]} 51. Bg3 {[%clk 0:00:20]}  Re5 {[%clk 0:00:08]} 52. Bxe5 {[%clk 0:00:20]}  fxe5 {[%clk 0:00:09]} 53. Ke3 {[%clk 0:00:16]}  Ke7 {[%clk 0:00:08]} 54. Kd3 {[%clk 0:00:15]}  a5 {[%clk 0:00:05]} 55. Rb2 {[%clk 0:00:14]}  Nc8 {[%clk 0:00:05]} 56. Rb5 {[%clk 0:00:14]}  Kd6 {[%clk 0:00:04]} 57. Rd5+ {[%clk 0:00:14]}  Kc6 {[%clk 0:00:02]} 58. Rxe5 {[%clk 0:00:13]}  Nd6 {[%clk 0:00:02]} 59. f6 {[%clk 0:00:12]}  a4 {[%clk 0:00:02]} 60. Kc3 {[%clk 0:00:10]}  a3 {[%clk 0:00:00]} 61. Re7 {[%clk 0:00:06]} 1-0


[Site "https://www.chess.com"]

[Event "Titled Tuesday Blitz July 18 Early 2023"]
[White "Bazilius, Augustinas"]
[Black "Krstulovic, Alex"]
[WhiteFideId "12832251"]
[BlackFideId "760056"]
[WhiteElo "2416"]
[BlackElo "2587"]
[Result "0-1"]
[Round "6"]
[TimeControl "180+2"]
[Date "2023.07.18"]
[WhiteClock "0:00:03"]
[BlackClock "0:00:09"]
[Board "91"]

1. d4 {[%clk 0:03:00]}  Na6 {[%clk 0:02:59]} 2. c4 {[%clk 0:03:01]}  e5 {[%clk 0:02:59]} 3. dxe5 {[%clk 0:03:01]}  d6 {[%clk 0:02:59]} 4. exd6 {[%clk 0:03:01]}  Bxd6 {[%clk 0:03:00]} 5. Nf3 {[%clk 0:03:02]}  Nf6 {[%clk 0:02:59]} 6. e3 {[%clk 0:03:02]}  Bf5 {[%clk 0:02:52]} 7. Nc3 {[%clk 0:03:01]}  Qe7 {[%clk 0:02:52]} 8. Nd5 {[%clk 0:02:47]}  Nxd5 {[%clk 0:02:51]} 9. cxd5 {[%clk 0:02:47]}  Nb4 {[%clk 0:02:52]} 10. Nd4 {[%clk 0:02:42]}  Bg6 {[%clk 0:02:33]} 11. Bb5+ {[%clk 0:02:29]}  c6 {[%clk 0:02:13]} 12. dxc6 {[%clk 0:02:28]}  O-O {[%clk 0:02:12]} 13. O-O {[%clk 0:02:23]}  a6 {[%clk 0:02:06]} 14. cxb7 {[%clk 0:02:19]}  Qxb7 {[%clk 0:02:07]} 15. Be2 {[%clk 0:02:15]}  Rad8 {[%clk 0:02:02]} 16. Bd2 {[%clk 0:02:11]}  Qb8 {[%clk 0:01:47]} 17. Bxb4 {[%clk 0:02:03]}  Qxb4 {[%clk 0:01:47]} 18. Qb3 {[%clk 0:01:50]}  Qc5 {[%clk 0:01:38]} 19. Qc4 {[%clk 0:01:47]}  Qe5 {[%clk 0:01:30]} 20. Nf3 {[%clk 0:01:47]}  Qxb2 {[%clk 0:01:30]} 21. Qxa6 {[%clk 0:01:44]}  Be4 {[%clk 0:01:23]} 22. Nd4 {[%clk 0:01:38]}  Be5 {[%clk 0:01:15]} 23. a4 {[%clk 0:01:36]}  Qb8 {[%clk 0:01:02]} 24. g3 {[%clk 0:01:34]}  Rfe8 {[%clk 0:00:46]} 25. Qb5 {[%clk 0:01:29]}  Qd6 {[%clk 0:00:44]} 26. a5 {[%clk 0:01:26]}  Qh6 {[%clk 0:00:36]} 27. a6 {[%clk 0:01:21]}  Bxg3 {[%clk 0:00:30]} 28. Qh5 {[%clk 0:01:02]}  Qxh5 {[%clk 0:00:14]} 29. Bxh5 {[%clk 0:01:03]}  Be5 {[%clk 0:00:15]} 30. a7 {[%clk 0:00:56]}  Ba8 {[%clk 0:00:15]} 31. Rfd1 {[%clk 0:00:49]}  Rd6 {[%clk 0:00:14]} 32. Bf3 {[%clk 0:00:43]}  Bxf3 {[%clk 0:00:12]} 33. Nxf3 {[%clk 0:00:44]}  Rg6+ {[%clk 0:00:13]} 34. Kf1 {[%clk 0:00:39]}  Bxa1 {[%clk 0:00:13]} 35. Rxa1 {[%clk 0:00:37]}  Ra8 {[%clk 0:00:14]} 36. Rb1 {[%clk 0:00:31]}  Rc6 {[%clk 0:00:09]} 37. Nd4 {[%clk 0:00:29]}  Rcc8 {[%clk 0:00:07]} 38. Rb7 {[%clk 0:00:26]}  g6 {[%clk 0:00:07]} 39. Nb5 {[%clk 0:00:24]}  Rd8 {[%clk 0:00:07]} 40. Nc7 {[%clk 0:00:22]}  Rac8 {[%clk 0:00:08]} 41. a8=Q {[%clk 0:00:22]}  Rxa8 {[%clk 0:00:08]} 42. Nxa8 {[%clk 0:00:23]}  Rxa8 {[%clk 0:00:09]} 43. Kg2 {[%clk 0:00:22]}  h5 {[%clk 0:00:09]} 44. Rb4 {[%clk 0:00:22]}  Kg7 {[%clk 0:00:10]} 45. Rd4 {[%clk 0:00:23]}  Ra2 {[%clk 0:00:10]} 46. Rf4 {[%clk 0:00:23]}  Ra5 {[%clk 0:00:09]} 47. Rd4 {[%clk 0:00:23]}  g5 {[%clk 0:00:10]} 48. Rb4 {[%clk 0:00:23]}  Kg6 {[%clk 0:00:10]} 49. Rb6+ {[%clk 0:00:23]}  f6 {[%clk 0:00:11]} 50. Rc6 {[%clk 0:00:21]}  Ra4 {[%clk 0:00:12]} 51. Rb6 {[%clk 0:00:20]}  Ra5 {[%clk 0:00:12]} 52. Rc6 {[%clk 0:00:20]}  Rf5 {[%clk 0:00:13]} 53. Rb6 {[%clk 0:00:20]}  g4 {[%clk 0:00:13]} 54. Kg3 {[%clk 0:00:19]}  Rf3+ {[%clk 0:00:13]} 55. Kg2 {[%clk 0:00:20]}  h4 {[%clk 0:00:14]} 56. Rb4 {[%clk 0:00:19]}  h3+ {[%clk 0:00:14]} 57. Kg1 {[%clk 0:00:18]}  Kg5 {[%clk 0:00:14]} 58. Rb5+ {[%clk 0:00:18]}  Rf5 {[%clk 0:00:15]} 59. Rb1 {[%clk 0:00:14]}  Rc5 {[%clk 0:00:15]} 60. Rd1 {[%clk 0:00:13]}  Kf5 {[%clk 0:00:16]} 61. Rb1 {[%clk 0:00:03]}  Ke4 {[%clk 0:00:10]} 62. Rb2 {[%clk 0:00:03]}  Rc1# {[%clk 0:00:09]} 0-1


[Site "https://www.chess.com"]